lending/lending_fUSD_20240507
["ID","MTS","AMOUNT","RATE_DAILY","PERIOD"]
[326527922,1715056237637,-3553.7837,0.000128,2]
[326527923,1715056237646,-848.3316,0.000128,2]
[326527924,1715056237656,-222.09789545,0.00012868,2]
[326527925,1715056237666,-526.40302294,0.00012899,2]
[326527926,1715056237678,-172.37833329,0.000129,2]
[326527927,1715056237688,-937.09396033,0.000129,2]
[326527928,1715056237699,-100000.0,0.000129,2]
[326527929,1715056237709,-155.0,0.000129,2]
[326527930,1715056237719,-10000.0,0.000129,2]
[326527931,1715056237730,-7500.0,0.000129,2]
[326527932,1715056237740,-567.37478334,0.000129,2]
[326527933,1715056237750,-150.0,0.00012925,2]
[326527934,1715056237760,-523.05,0.00012925,2]
[326527935,1715056237770,-419.95,0.00012925,2]
[326527936,1715056237780,-701.54,0.00012925,2]
[326527937,1715056237789,-989.53640548,0.00012981,2]
[326527938,1715056237799,-454.40462581,0.00012998,2]
[326527939,1715056237808,-1134.34297404,0.00012998,2]
[326527940,1715056237819,-2217.28362404,0.00012998,2]
[326527941,1715056237829,-207.58542229,0.00012999,2]
[326527942,1715056237839,-5648.27973679,0.00012999,2]
[326527943,1715056237855,-529.0,0.00013,2]
[326527944,1715056237870,-128579.99224822,0.00013,2]
[326527945,1715056237887,-675.17501982,0.00013,2]
[326527946,1715056237902,-1373.27,0.00013,2]
[326527947,1715056237920,-689.36804504,0.00013,2]
[326527948,1715056237936,-1487.82941497,0.00013,2]
[326527955,1715056242166,-12108.08343998,0.00013,2]
[326527956,1715056242750,-560.37131244,0.00013,2]
[326527957,1715056242764,-3491.005,0.00013,2]
[326527958,1715056242779,-310.90160006,0.00013,2]
[326527961,1715056252176,-267.89721336,0.00012999,2]
[326527962,1715056252186,-67.40849091,0.00013,2]
[326527963,1715056252198,-632.25287615,0.00013,2]
[326527964,1715056252308,-35997.65688495,0.00013,2]
[326527965,1715056254898,-154.61651622,0.000129,2]
[326527966,1715056254908,-118.69542252,0.00012999,2]
[326527967,1715056254921,-403.99541121,0.00012999,2]
[326527968,1715056254931,-1203.23676951,0.00013,2]
[326527969,1715056254942,-490.93550515,0.00013,2]
[326527970,1715056254954,-3389.83,0.00013,2]
[326527971,1715056254965,-10658.88434825,0.00013,2]
[326527972,1715056488128,-316.599621,9.621e-05,2]
[326527973,1715056488183,-1000.0,9.621e-05,2]
[326527974,1715056488214,-1507.08911222,9.621e-05,2]
[326527975,1715056488240,-522.69083373,0.00012799,2]
[326527976,1715056488266,-267.89721336,0.00012799,2]
[326527977,1715056488291,-385.72321969,0.000128,2]
[326527978,1715056489064,-4000.0,0.000128,2]
[326527979,1715056490809,-3044.42728031,0.000128,2]
[326527980,1715056490833,-955.57271969,0.000128,2]
[326527981,1715056491599,-4000.0,0.000128,2]
[326527982,1715056492807,-4000.0,0.000128,2]
[326527983,1715056494515,-4000.0,0.000128,2]
[326527984,1715056501746,-3836.0,0.000128,2]
[326527985,1715056524150,-161.10137834,0.000127,2]
[326527986,1715056524179,-2838.89862166,0.000128,2]
[326527999,1715057435004,-522.69083373,9.597e-05,2]
[326528000,1715057435022,-267.89721336,9.598e-05,2]
[326528001,1715057435034,-550.0,9.621e-05,2]
[326528002,1715057435048,-843.0,9.621e-05,2]
[326528003,1715057435059,-1048.69998173,0.00012348,2]
[326528004,1715057435074,-1362.44945144,0.00012348,2]
[326528005,1715057435085,-250.0,0.00012624,2]
[326528006,1715057435096,-200.0,0.00012647,2]
[326528007,1715057435106,-214.49392509,0.00012681,2]
[326528008,1715057435119,-325.50607491,0.00012681,2]
[326528009,1715057435130,-3500.3496962,0.00012768,2]
[326528010,1715057435140,-167.27,0.00012777,2]
[326528011,1715057435150,-400.40653525,0.0001279,2]
[326528012,1715057435162,-4839.99789359,0.000128,2]
[326528013,1715057436591,-1383.1785413,0.000128,2]
[326528015,1715057442338,-1617.29269,0.000128,2]
[326528021,1715057443919,-999.858006,0.000128,2]
[326528096,1715057446792,-28020.46932776,0.000128,2]
[326528098,1715057446803,-6462.23041819,0.000128,2]
[326528099,1715057446813,-155.0,0.000128,2]
[326528100,1715057446823,-7509.13550586,0.000128,2]
[326528101,1715057446833,-295.68673205,0.000128,2]
[326528102,1715057446843,-29999.99,0.000128,2]
[326528103,1715057446853,-477.86815451,0.0001287,2]
[326528104,1715057446863,-10000.0,0.000129,2]
[326528105,1715057446873,-1000.0,0.000129,2]
[326528106,1715057446884,-172.37833329,0.000129,2]
[326528107,1715057446895,-859.00279696,0.000129,2]
[326528108,1715057446907,-155.0,0.000129,2]
[326528109,1715057446920,-3232.288,0.000129,2]
[326528110,1715057446931,-2500.0,0.000129,2]
[326528111,1715057446941,-195.20944864,0.000129,2]
[326528112,1715057446951,-323.75400239,0.000129,2]
[326528113,1715057446962,-886.68710637,0.000129,2]
[326528114,1715057446972,-160.48985726,0.000129,2]
[326528115,1715057446982,-783.62102359,0.00012998,2]
[326528116,1715057446992,-156.25042883,0.00012998,2]
[326528117,1715057447003,-7500.03866897,0.00012999,2]
[326528118,1715057447022,-150.01,0.00012999,2]
[326528119,1715057447035,-1176.18636104,0.00012999,2]
[326528120,1715057447047,-2576960.30321683,0.00013,2]
[326528121,1715057447060,-328.2872427,0.00013,2]
[326528122,1715057447073,-634.8149412,0.00013,2]
[326528123,1715057447085,-145290.36513958,0.00013,2]
[326528141,1715057448951,-4654.61803241,0.00013,2]
[326528142,1715057448963,-1000.0,0.00013,2]
[326528148,1715057532428,9885.50574549,0.00025008,120]
[326528149,1715057532501,9496.49425451,0.00025008,120]
[326528160,1715058188146,1000.0,0.00025008,120]
[326528161,1715058188282,1000.0,0.00025008,120]
[326528162,1715058189109,1000.0,0.00025008,120]
[326528163,1715058190795,1000.0,0.00025008,120]
[326528164,1715058192058,1000.0,0.00025008,120]
[326528165,1715058192951,1000.0,0.00025008,120]
[326528166,1715058193044,1000.0,0.00025008,120]
[326528167,1715058193509,1000.0,0.00025008,120]
[326528168,1715058193934,1000.0,0.00025008,120]
[326528169,1715058194523,1000.0,0.00025008,120]
[326528170,1715058194864,1000.0,0.00025008,120]
[326528171,1715058195275,1000.0,0.00025008,120]
[326528172,1715058195762,1000.0,0.00025008,120]
[326528173,1715058196182,1000.0,0.00025008,120]
[326528174,1715058196631,1000.0,0.00025008,120]
[326528175,1715058199344,1000.0,0.00025008,120]
[326528176,1715058199600,1000.0,0.00025008,120]
[326528177,1715058199653,1000.0,0.00025008,120]
[326528178,1715058199690,1000.0,0.00025008,120]
[326528179,1715058200084,1000.0,0.00025008,120]
[326528180,1715058200722,1000.0,0.00025008,120]
[326528181,1715058201391,1000.0,0.00025008,120]
[326528182,1715058201516,1000.0,0.00025008,120]
[326528183,1715058202107,1000.0,0.00025008,120]
[326528184,1715058202248,1000.0,0.00025008,120]
[326528185,1715058202584,1000.0,0.00025008,120]
[326528186,1715058203008,1000.0,0.00025008,120]
[326528187,1715058203637,1000.0,0.00025008,120]
[326528188,1715058204137,1000.0,0.00025008,120]
[326528189,1715058204613,1000.0,0.00025008,120]
[326528190,1715058206338,1000.0,0.00025008,120]
[326528191,1715058207042,1000.0,0.00025008,120]
[326528192,1715058207117,1000.0,0.00025008,120]
[326528193,1715058207224,1000.0,0.00025008,120]
[326528194,1715058207330,1000.0,0.00025008,120]
[326528195,1715058207401,1000.0,0.00025008,120]
[326528196,1715058207535,1000.0,0.00025008,120]
[326528197,1715058207582,1000.0,0.00025008,120]
[326528198,1715058207924,1000.0,0.00025008,120]
[326528199,1715058208393,1000.0,0.00025008,120]
[326528200,1715058208842,1000.0,0.00025008,120]
[326528201,1715058209250,1000.0,0.00025008,120]
[326528202,1715058209723,503.50574549,0.00025008,120]
[326528203,1715058265142,94496.49425451,0.00025,120]
[326528204,1715058359903,3000.0,0.0002,9]
[326528207,1715058476983,1000.0,0.00023,30]
[326528218,1715058637780,-522.69083373,0.00011905,2]
[326528219,1715058637789,-267.89721336,0.00011905,2]
[326528220,1715058637799,-250.0,0.00011906,2]
[326528221,1715058637809,-2107.78555454,0.00012779,2]
[326528222,1715058637823,-196.26323773,0.00012779,2]
[326528223,1715058637834,-1987.47636227,0.0001278,2]
[326528224,1715058637847,-12592.9554049,0.0001278,2]
[326528225,1715058638080,-599.7,0.0001278,2]
[326528228,1715058638092,-2232.5325917,0.0001278,2]
[326528230,1715058638104,-1974.8225,0.0001278,2]
[326528232,1715058638116,-6381.93495264,0.0001278,2]
[326528234,1715058638128,-899.14757356,0.0001278,2]
[326528265,1715058638585,-23112.29167167,0.0001278,2]
[326528268,1715058638595,-568.03222421,0.000128,2]
[326528270,1715058638605,-547.35752792,0.000128,2]
[326528272,1715058638614,-301.56698633,0.000128,2]
[326528274,1715058638625,-22801.43133095,0.000128,2]
[326528276,1715058638636,-1866.03,0.000128,2]
[326528278,1715058638646,-2008.15701,0.0001287,2]
[326528280,1715058638656,-500.0,0.000129,2]
[326528282,1715058638665,-340.7231,0.000129,2]
[326528284,1715058638675,-10000.0,0.000129,2]
[326528286,1715058638684,-172.37833329,0.000129,2]
[326528288,1715058638694,-2437.11538145,0.000129,2]
[326528290,1715058638705,-5062.88461855,0.000129,2]
[326528292,1715058638714,-684.02493244,0.000129,2]
[326528294,1715058638724,-115.61031812,0.00012989,2]
[326528296,1715058638740,-39.38968188,0.00012989,2]
[326528298,1715058638749,-3129.42031815,0.00013,2]
[326528324,1715058640522,-353.1122518,0.00013,2]
[326528327,1715058640534,-837.10153918,0.00013,2]
[326528329,1715058649239,-524.74502416,0.000129,2]
[326528332,1715058649251,-66.37971342,0.000129,2]
[326528334,1715058649261,-258.54868622,0.00013,2]
[326528337,1715058649273,-404.0,0.00013,2]
[326528367,1715059271393,130410.46788616,0.00023,30]
[326528368,1715059296265,8685.55,0.0002,9]
[326528382,1715059832309,-274.2376662,0.00011989,2]
[326528384,1715059832322,-248.45316753,0.00011989,2]
[326528386,1715059832332,-21.81270474,0.00011989,2]
[326528444,1715059845528,-246.08450862,0.00011989,2]
[326528448,1715059845538,-522.69083373,0.00011999,2]
[326528452,1715059845548,-2217.35818765,0.00012,2]
[326528475,1715059846049,-418.876971,0.00012,2]
[326528476,1715059846060,-3575.93850624,0.00012,2]
[326528477,1715059846071,-1514.61708688,0.00012,2]
[326528478,1715059846083,-404.24487,0.00012,2]
[326528479,1715059846095,-409952.43472835,0.00012,2]
[326528480,1715059846107,-10000.0,0.000129,2]
[326528481,1715059846117,-17534.7947,0.000129,2]
[326528482,1715059846126,-787.41923051,0.000129,2]
[326528483,1715059846136,-155.0,0.000129,2]
[326528484,1715059846147,-4499.50497334,0.000129,2]
[326528485,1715059846158,-394.08315838,0.000129,2]
[326528486,1715059846167,-3788.98479244,0.000129,2]
[326528487,1715059846177,-154.6568369,0.0001299,2]
[326528488,1715059846194,-154.6568369,0.0001299,2]
[326528489,1715059846204,-154.6568369,0.0001299,2]
[326528490,1715059846214,-150.65941301,0.00012999,2]
[326528491,1715059846224,-1176.18636104,0.00012999,2]
[326528492,1715059846234,-42238.65367512,0.00013,2]
[326528493,1715059846246,-11786.18308989,0.00013,2]
[326528494,1715059846257,-652.13429658,0.00013,2]
[326528495,1715059847150,-317.68,0.00013,2]
[326528504,1715060967795,705.87547176,0.00025,120]
[326528518,1715061033528,-522.69083373,0.00011876,2]
[326528521,1715061033538,-267.89721336,0.00011889,2]
[326528524,1715061033547,-157.24133803,0.0001189,2]
[326528527,1715061033556,-945.417731,0.00012422,2]
[326528530,1715061033566,-267.84,0.00012485,2]
[326528533,1715061033575,-250.0,0.00012633,2]
[326528535,1715061033585,-1000.0,0.00012777,2]
[326528538,1715061033602,-172.49380918,0.000129,2]
[326528541,1715061033612,-10000.0,0.000129,2]
[326528542,1715061033621,-499.99,0.000129,2]
[326528544,1715061033631,-721.80096131,0.000129,2]
[326528546,1715061033640,-3315.36169342,0.000129,2]
[326528548,1715061033649,-155.0,0.000129,2]
[326528550,1715061033659,-456.01662164,0.000129,2]
[326528552,1715061033668,-262.72210558,0.000129,2]
[326528554,1715061033677,-23900.0,0.00012901,2]
[326528556,1715061033687,-24047.99,0.00012989,2]
[326528558,1715061033696,-11359.0,0.0001299,2]
[326528560,1715061033706,-150.99,0.0001299,2]
[326528562,1715061033715,-49163.54769278,0.00013,2]
[326528565,1715061033726,-393.42303579,0.00013,2]
[326528567,1715061033737,-17124.03348161,0.00013,2]
[326528581,1715061039124,-151.21,0.0001299,2]
[326528583,1715061039134,-151.21,0.0001299,2]
[326528585,1715061039144,-151.21,0.0001299,2]
[326528587,1715061039153,-1413.91663435,0.00013,2]
[326528589,1715061039165,-292.82652537,0.00013,2]
[326528590,1715061039179,-1421.105003,0.00013,2]
[326528627,1715061042353,-151.21,0.0001299,2]
[326528628,1715061042363,-151.21,0.0001299,2]
[326528629,1715061042373,-151.21,0.0001299,2]
[326528630,1715061042383,-2446.69794102,0.00013,2]
[326528632,1715061042395,-2030.1395477,0.00013,2]
[326528636,1715061045364,-522.69083373,0.00012999,2]
[326528639,1715061045374,-43541.62102246,0.00013,2]
[326528644,1715061045387,-3596.80829971,0.00013,2]
[326528649,1715061048072,-181.47605938,0.00012999,2]
[326528650,1715061048083,-215.52394062,0.00013,2]
[326528654,1715061681498,-522.69083373,0.00011325,2]
[326528655,1715061681520,-1398.57374236,0.00011326,2]
[326528656,1715061681545,-175.66,0.00011328,2]
[326528657,1715061681584,-423.9885944,0.000117,2]
[326528658,1715061681608,-10000.0,0.000129,2]
[326528659,1715061681633,-175.1480704,0.000129,2]
[326528660,1715061681656,-2999.66998222,0.000129,2]
[326528661,1715061681678,-1333.9728,0.000129,2]
[326528662,1715061681701,-193.41308259,0.0001299,2]
[326528663,1715061681724,-193.41308259,0.0001299,2]
[326528664,1715061681746,-155.0,0.00012997,2]
[326528665,1715061681768,-267.83236721,0.00012998,2]
[326528666,1715061681793,-155.74474673,0.00012998,2]
[326528667,1715061683398,-4434.30729365,0.00012998,2]
[326528668,1715061683888,-539.97375662,0.00012998,2]
[326528669,1715061683913,-365.51938236,0.00012998,2]
[326528670,1715061683937,-410.0724791,0.00012998,2]
[326528671,1715061683962,-42255.01978604,0.00013,2]
[326528672,1715061749271,-423.1768076,0.000117,2]
[326528673,1715061749294,-304.01108108,0.000129,2]
[326528674,1715061749316,-155.33748118,0.00012998,2]
[326528675,1715061749339,-155.0,0.00012999,2]
[326528676,1715061749363,-522.69083373,0.00012999,2]
[326528677,1715061749389,-2439.78379641,0.00013,2]
[326528683,1715062173776,158.214098,0.00025,120]
[326528691,1715062234457,-522.69083373,0.00012899,2]
[326528693,1715062234467,-2217.06766205,0.00012899,2]
[326528695,1715062234480,-31855.49999997,0.00012899,2]
[326528716,1715062242255,-556.67784049,0.00012899,2]
[326528717,1715062242889,-1100.0,0.00012899,2]
[326528718,1715062242906,-2348.40046312,0.00012899,2]
[326528719,1715062242927,-967.5007119,0.00012899,2]
[326528739,1715062243930,-490.1733676,0.00012899,2]
[326528743,1715062243957,-3.42713728,0.00012899,2]
[326528745,1715062243968,-444.24779552,0.00012899,2]
[326528746,1715062245094,-863.53028049,0.00012899,2]
[326528747,1715062245105,-993.12736041,0.00012899,2]
[326528748,1715062246351,-3030.99915328,0.00012899,2]
[326528750,1715062246363,-549.5572481,0.00012899,2]
[326528753,1715062246374,-8253.94937888,0.00012899,2]
[326528756,1715062246383,-9507.8042,0.000129,2]
[326528759,1715062246393,-661.65088121,0.000129,2]
[326528762,1715062246402,-1999.77998814,0.000129,2]
[326528763,1715062246413,-202.67405406,0.000129,2]
[326528766,1715062246423,-204.028821,0.00012999,2]
[326528769,1715062246432,-173481.75548156,0.00013,2]
[326528771,1715062246443,-761.876,0.00013,2]
[326528774,1715062246454,-306.877465,0.00013,2]
[326528776,1715062246466,-2355.30995666,0.00013,2]
[326528778,1715062246477,-6028.6047016,0.00013,2]
[326528780,1715062246488,-1027.0919997,0.00013,2]
[326528831,1715063433061,-1335.215626,0.00012835,2]
[326528833,1715063433071,-468.274374,0.000129,2]
[326528836,1715063433083,-138.23893373,0.000129,2]
[326528838,1715063433094,-155.72489676,0.000129,2]
[326528840,1715063433104,-506.03616951,0.0001299,2]
[326528842,1715063433116,-728.30971399,0.0001299,2]
[326528844,1715063433128,-709.2871165,0.0001299,2]
[326528846,1715063433143,-155.51888438,0.00012998,2]
[326528848,1715063433156,-101.62863286,0.00012998,2]
[326528851,1715063433168,-368.45856982,0.00012998,2]
[326528972,1715063441123,-239.1020355,0.00012998,2]
[326528975,1715063441134,-155.7887744,0.00012998,2]
[326528978,1715063441148,-155.0,0.00012998,2]
[326528981,1715063441162,-607.3927304,0.00012998,2]
[326528984,1715063441172,-227.02691061,0.00012998,2]
[326528988,1715063441184,-357.03019127,0.00012998,2]
[326528992,1715063441197,-4178.43070662,0.00012998,2]
[326528994,1715063441208,-547.8479964,0.00012998,2]
[326528995,1715063441219,-269.87300239,0.00012999,2]
[326528996,1715063441230,-267.83236721,0.00012999,2]
[326528997,1715063441241,-784.1242407,0.00012999,2]
[326528998,1715063441251,-11867.04331153,0.00013,2]
[326528999,1715063441264,-364.0,0.00013,2]
[326529000,1715063441275,-5080.02471071,0.00013,2]
[326529001,1715063441288,-539.00383144,0.00013,2]
[326529002,1715063442100,-1079.25349039,0.00013,2]
[326529003,1715063442113,-2554.23744066,0.00013,2]
[326529004,1715063442126,-1200.0,0.00013,2]
[326529005,1715063442138,-1335.21562601,0.00013,2]
[326529050,1715063445170,-193.41308259,0.0001299,2]
[326529052,1715063445181,-392.06212035,0.00012999,2]
[326529054,1715063445191,-28754.35568537,0.00013,2]
[326529076,1715064634269,-194.7215506,0.00011981,2]
[326529079,1715064634280,-250.0,0.00011982,2]
[326529080,1715064634290,-155.0,0.00011989,2]
[326529081,1715064634301,-725.04196096,0.0001199,2]
[326529082,1715064634315,-571.61940899,0.0001199,2]
[326529083,1715064634327,-764.03790892,0.0001199,2]
[326529086,1715064634340,-1538.55423817,0.0001199,2]
[326529087,1715064634353,-990.99718386,0.0001199,2]
[326529088,1715064634363,-913.25,0.00011991,2]
[326529089,1715064634373,-409.72269512,0.00012,2]
[326529090,1715064634384,-150.0,0.00012097,2]
[326529091,1715064634395,-15333.98499302,0.00012098,2]
[326529092,1715064634407,-821.36640746,0.00012098,2]
[326529093,1715064634420,-620.0,0.00012098,2]
[326529094,1715064634432,-15386.000001,0.00012098,2]
[326529102,1715064641294,-1152.62062948,0.000119,2]
[326529104,1715064641306,-1345.47295336,0.000119,2]
[326529105,1715064641316,-21512.80699761,0.00012098,2]
[326529106,1715064641326,-559.31045228,0.000121,2]
[326529161,1715064647884,-938.32227036,0.000121,2]
[326529162,1715064647894,-800.0,0.00012115,2]
[326529163,1715064647904,-499.99,0.00012233,2]
[326529164,1715064647913,-1746.7,0.00012233,2]
[326529166,1715064647927,-150.0,0.00012301,2]
[326529168,1715064647938,-11177.7439,0.00012699,2]
[326529170,1715064647949,-7288.3114396,0.00012757,2]
[326529173,1715064647960,-7506.04567181,0.00012768,2]
[326529174,1715064647970,-1135.3087,0.00012769,2]
[326529175,1715064647980,-151.0,0.00012799,2]
[326529176,1715064647990,-164.603082,0.00012799,2]
[326529177,1715064647999,-212.150863,0.00012799,2]
[326529178,1715064648009,-212.150863,0.00012799,2]
[326529179,1715064648019,-190.58237585,0.00012799,2]
[326529180,1715064648028,-190.58237583,0.0001285,2]
[326529181,1715064648037,-185.81912399,0.00012889,2]
[326529182,1715064648047,-168.13,0.00012889,2]
[326529183,1715064648056,-631405.9248,0.00012899,2]
[326529184,1715064648065,-151.0,0.00012899,2]
[326529185,1715064648075,-212.150863,0.00012899,2]
[326529186,1715064648085,-212.150863,0.00012899,2]
[326529187,1715064648095,-458.7701,0.000129,2]
[326529188,1715064648105,-923.351,0.000129,2]
[326529189,1715064648114,-1000.0,0.000129,2]
[326529190,1715064648124,-158.27,0.000129,2]
[326529191,1715064648133,-165.70238202,0.000129,2]
[326529192,1715064648143,-2900.94148176,0.000129,2]
[326529193,1715064648152,-190.58237583,0.000129,2]
[326529194,1715064648161,-1333.18665876,0.000129,2]
[326529195,1715064648170,-168.13,0.00012926,2]
[326529196,1715064648180,-301.291487,0.00012936,2]
[326529197,1715064648189,-152.428601,0.00012936,2]
[326529198,1715064648199,-212.150863,0.00012936,2]
[326529199,1715064648209,-212.150863,0.00012936,2]
[326529200,1715064648218,-212.150863,0.00012936,2]
[326529201,1715064648228,-212.150863,0.00012936,2]
[326529202,1715064648238,-151.0,0.00012936,2]
[326529203,1715064648248,-151.0,0.00012936,2]
[326529204,1715064648257,-1413.798,0.00012936,2]
[326529205,1715064648267,-466.7,0.00012936,2]
[326529206,1715064648276,-975.229,0.00012936,2]
[326529207,1715064648286,-2328.91,0.00012936,2]
[326529208,1715064648295,-1248.703,0.00012936,2]
[326529209,1715064648304,-1274.68,0.00012936,2]
[326529210,1715064648314,-543.0,0.00012936,2]
[326529211,1715064648323,-809.0,0.00012936,2]
[326529212,1715064648333,-151.0,0.00012936,2]
[326529213,1715064648342,-618.665,0.00012936,2]
[326529214,1715064648353,-1788.0,0.00012936,2]
[326529215,1715064648363,-441.909,0.00012936,2]
[326529216,1715064648373,-313.063,0.00012936,2]
[326529217,1715064648382,-1495.087,0.00012936,2]
[326529218,1715064648391,-421.0,0.00012936,2]
[326529219,1715064648400,-151.281,0.00012936,2]
[326529220,1715064648410,-151.441,0.00012936,2]
[326529221,1715064648419,-2451.0,0.00012936,2]
[326529222,1715064648428,-444.0,0.00012936,2]
[326529223,1715064648441,-215.0,0.00012936,2]
[326529224,1715064648478,-1139.326,0.00012936,2]
[326529225,1715064648488,-1645.0,0.00012936,2]
[326529226,1715064648497,-3159.042,0.00012936,2]
[326529227,1715064648507,-151.0,0.00012936,2]
[326529228,1715064648518,-151.0,0.00012936,2]
[326529229,1715064648528,-151.0,0.00012936,2]
[326529230,1715064648538,-151.0,0.00012936,2]
[326529231,1715064648548,-424.789202,0.00012936,2]
[326529232,1715064648558,-424.789202,0.00012936,2]
[326529233,1715064648570,-151.0,0.00012936,2]
[326529234,1715064648580,-5807.079,0.00012936,2]
[326529235,1715064648589,-2294.0,0.00012936,2]
[326529236,1715064648599,-150.0,0.00012936,2]
[326529237,1715064648608,-5965.217,0.00012936,2]
[326529238,1715064648618,-37793.0,0.00012936,2]
[326529239,1715064648627,-292.378,0.00012936,2]
[326529240,1715064648637,-150.397,0.00012936,2]
[326529241,1715064648646,-1066.237,0.00012936,2]
[326529242,1715064648656,-151.0,0.00012936,2]
[326529243,1715064648665,-150.0,0.00012936,2]
[326529244,1715064648675,-151.0,0.00012936,2]
[326529245,1715064648684,-185.81912399,0.0001299,2]
[326529246,1715064648694,-168.13,0.0001299,2]
[326529247,1715064648703,-168.13,0.0001299,2]
[326529248,1715064648713,-267.83236721,0.00012998,2]
[326529249,1715064648723,-364.1795897,0.00012998,2]
[326529250,1715064648733,-26828.6048055,0.00012998,2]
[326529251,1715064648742,-151.0,0.00012998,2]
[326529252,1715064648752,-4398.9168894,0.00012998,2]
[326529253,1715064648762,-151.0,0.00012998,2]
[326529254,1715064648772,-151.0,0.00012998,2]
[326529255,1715064648782,-151.0,0.00012998,2]
[326529256,1715064648792,-151.0,0.00012998,2]
[326529257,1715064648802,-151.0,0.00012998,2]
[326529258,1715064648811,-165.89398,0.00012998,2]
[326529259,1715064648820,-151.0,0.00012998,2]
[326529260,1715064648829,-151.0,0.00012998,2]
[326529261,1715064648839,-173.708386,0.00012998,2]
[326529262,1715064648850,-151.0,0.00012998,2]
[326529263,1715064648859,-165.619096,0.00012998,2]
[326529264,1715064648869,-639.4623941,0.00012998,2]
[326529265,1715064648879,-424.789202,0.00012998,2]
[326529266,1715064648888,-424.789202,0.00012998,2]
[326529267,1715064648897,-424.789202,0.00012998,2]
[326529268,1715064648907,-424.789202,0.00012998,2]
[326529269,1715064648916,-424.789202,0.00012998,2]
[326529270,1715064648926,-424.789202,0.00012998,2]
[326529271,1715064648935,-4535.3609871,0.00012998,2]
[326529272,1715064648944,-2341.8068787,0.00012998,2]
[326529273,1715064648953,-151.0,0.00012998,2]
[326529274,1715064648963,-170.331491,0.00012998,2]
[326529275,1715064648972,-151.0,0.00012998,2]
[326529276,1715064648981,-151.0,0.00012998,2]
[326529277,1715064648990,-151.0,0.00012998,2]
[326529278,1715064649000,-151.0,0.00012998,2]
[326529279,1715064649009,-196.03106017,0.00012999,2]
[326529280,1715064649019,-783.61108974,0.00012999,2]
[326529281,1715064649028,-11619.48423629,0.00012999,2]
[326529282,1715064649038,-110894.59572849,0.00013,2]
[326529289,1715065269577,200.0,0.00025,120]
[326529292,1715065633178,158.94,0.00025,120]
[326529306,1715065833455,-405.99673822,0.00010931,2]
[326529307,1715065833467,-586.85226721,0.00010931,2]
[326529308,1715065833482,-309.31034047,0.00010931,2]
[326529310,1715065833494,-95.03250452,0.00010931,2]
[326529312,1715065833503,-407.60248368,0.00010932,2]
[326529314,1715065833514,-165.94728317,0.00010933,2]
[326529316,1715065833524,-399.86,0.00010944,2]
[326529318,1715065833533,-4866.54837369,0.00010996,2]
[326529320,1715065833544,-317.65,0.00010996,2]
[326529321,1715065833555,-18715.80162631,0.00010996,2]
[326529322,1715065833565,-908.53,0.00011013,2]
[326529323,1715065833574,-500.0,0.00011034,2]
[326529324,1715065833583,-364.1795897,0.0001104,2]
[326529325,1715065833593,-250.0,0.0001105,2]
[326529326,1715065833602,-200.0,0.00011053,2]
[326529327,1715065833619,-463.06,0.00011053,2]
[326529328,1715065833629,-751.73,0.00011062,2]
[326529329,1715065833642,-1000.0,0.00011065,2]
[326529330,1715065833652,-321.0,0.00011403,2]
[326529331,1715065833661,-400.0,0.00011413,2]
[326529332,1715065833671,-1852.42,0.00011414,2]
[326529333,1715065833680,-321.0,0.00011435,2]
[326529334,1715065833689,-321.0,0.00011466,2]
[326529335,1715065833699,-165.32,0.00011493,2]
[326529336,1715065833708,-321.0,0.00011497,2]